bitfinex/quotes_ETHUSD_20240921
["timestamp","ask_amount","ask_price","bid_price","bid_amount"]
[1726962010517,0.52871983,2607.0,2606.9,3.83597]
[1726962011227,0.52871983,2607.0,2606.2,6.83694]
[1726962011411,1.51193181,2607.0,2606.9,3.83597]
[1726962011612,0.52871983,2607.0,2606.9,3.83597]
[1726962014409,0.52871983,2607.0,2606.9,6.92192]
[1726962014845,0.52871983,2607.0,2606.9,3.83597]
[1726962015305,0.52871983,2607.0,2606.9,63.04521294]
[1726962015617,0.52871983,2607.0,2606.9,67.1448084]
[1726962015818,0.52871983,2607.0,2606.9,67.49873415]
[1726962016151,0.05785853,2608.0,2607.9,7.2089]
[1726962016458,0.05785853,2608.0,2607.9,7.47316571]
[1726962016756,0.05785853,2608.0,2607.9,21.44461471]
[1726962017050,0.00785853,2608.0,2607.9,29.0259562]
[1726962017207,0.00785853,2608.0,2607.9,6.01294029]
[1726962017744,0.00785853,2608.0,2607.9,3.01294029]
[1726962018503,0.00785853,2608.0,2607.9,20.74536229]
[1726962018738,0.00785853,2608.0,2607.9,20.72508554]
[1726962019407,0.00785853,2608.0,2607.9,15.93509754]
[1726962019740,0.00785853,2608.0,2607.9,35.47546154]
[1726962019970,0.00785853,2608.0,2607.7,3.79676716]
[1726962020132,0.00785853,2608.0,2607.9,3.8345]
[1726962020970,0.00785853,2608.0,2607.9,12.937808]
[1726962021130,0.00785853,2608.0,2607.9,15.434613]
[1726962021331,0.00785853,2608.0,2607.9,11.222664]
[1726962021870,0.00785853,2608.0,2607.9,21.70238792]
[1726962023237,0.0535085,2609.1,2609.0,3.83288]
[1726962024662,0.0535085,2609.1,2608.7,3.83321]
[1726962024974,9.3034,2609.0,2608.5,3.79549096]
[1726962025177,1.3784579,2608.9,2608.6,3.83342]
[1726962025477,1.3784579,2608.9,2608.8,3.83318]
[1726962025775,9.3034,2609.0,2608.8,3.83318]
[1726962025959,9.3034,2609.0,2608.6,3.83341]
[1726962026283,9.4305,2608.9,2608.2,0.00080383]
[1726962026579,9.4305,2608.8,2608.2,3.83485383]
[1726962026869,3.83346,2608.7,2608.2,0.00080383]
[1726962027032,9.813846,2608.6,2608.2,0.00080383]
[1726962027428,9.813846,2608.6,2608.2,3.83473383]
[1726962027833,9.813846,2608.6,2608.2,0.00080383]
[1726962028036,9.813846,2608.6,2608.2,3.83472383]
[1726962028277,9.813846,2608.6,2608.5,3.83362]
[1726962028769,9.4305,2608.6,2608.5,3.83362]
[1726962029342,9.4305,2608.6,2608.4,3.83366]
[1726962029543,9.4305,2608.6,2608.3,3.83391]
[1726962029743,9.4305,2608.6,2608.2,3.83481383]
[1726962029977,9.4305,2608.6,2608.2,0.00080383]
[1726962030179,5.160083,2608.5,2608.2,0.00080383]
[1726962030361,9.4305,2608.4,2608.2,0.00080383]
[1726962030573,18.24208053,2608.3,2608.2,0.00080383]
[1726962031287,3.83435,2608.0,2607.9,1.0]
[1726962031496,9.4749,2607.8,2607.0,3.83575]
[1726962031778,9.4749,2607.5,2607.2,3.83543]
[1726962031935,9.4749,2607.5,2607.0,3.8357]
[1726962032135,9.4749,2607.5,2607.3,3.83535]
[1726962032343,9.4749,2607.5,2607.4,3.83523]
[1726962032695,9.4749,2607.5,2607.1,4.32929511]
[1726962032696,10.801283,2608.5,2607.2,3.0]
[1726962032850,9.4749,2608.5,2608.4,3.83376]
[1726962033049,9.4749,2608.5,2608.3,3.83391]
[1726962033050,0.0535085,2609.1,2609.0,3.83288]
[1726962035695,3.3835085,2609.1,2609.0,3.83288]
[1726962036347,3.3835085,2609.1,2608.9,3.83292]
[1726962036588,3.3835085,2609.1,2609.0,3.83288]
[1726962036899,3.3835085,2609.1,2609.0,32.14175511]
[1726962037250,3.3835085,2609.1,2609.0,34.69175511]
[1726962037454,0.033,2609.8,2609.0,34.69175511]
[1726962037455,0.033,2609.8,2609.7,9.67065]
[1726962037654,0.3035085,2610.2,2610.1,3.83127]
[1726962037857,0.0008,2610.7,2610.6,9.38053]
[1726962038094,0.0536323,2611.6,2611.5,6.82921]
[1726962038310,0.0536323,2611.6,2611.5,64.88303203]
[1726962038485,0.0536323,2611.6,2611.5,67.50279603]
[1726962038805,0.1650669,2613.6,2612.1,2.8058]
[1726962039002,0.1650669,2613.6,2613.3,4.90003833]
[1726962039168,0.1650669,2613.6,2613.4,0.6537837]
[1726962039507,0.1650669,2613.6,2613.2,3.0]
[1726962039806,0.1650669,2613.6,2613.4,3.0]
[1726962040104,0.1650669,2613.6,2613.1,2.8058]
[1726962040315,3.82369,2615.3,2613.3,3.0]
[1726962040610,4.90003833,2615.1,2612.9,0.56228642]
[1726962040803,3.82414,2615.0,2613.3,0.56228642]
[1726962040954,9.5369669,2615.4,2613.5,3.0]
[1726962040955,3.82424,2614.9,2613.5,3.0]
[1726962041147,3.82424,2614.9,2612.9,0.54272669]
[1726962041148,3.82424,2614.9,2613.6,0.56228642]
[1726962041353,3.82482,2614.5,2613.5,3.0]
[1726962041554,9.4749,2614.4,2613.1,0.53345975]
[1726962042170,8.72515833,2614.3,2612.6,0.54272669]
[1726962042381,8.72515833,2614.3,2612.4,9.2048]
[1726962042382,3.82573,2613.9,2612.4,9.2048]
[1726962042582,3.8874669,2614.1,2612.5,0.502059]
[1726962042583,0.382573,2613.8,2612.5,0.502059]
[1726962042807,0.0620669,2614.1,2612.5,0.502059]
[1726962043415,3.8874869,2614.1,2612.5,3.502059]
[1726962043905,3.8875069,2614.1,2612.5,3.502059]
[1726962044314,3.8875069,2614.1,2612.5,3.0]
[1726962044514,0.0620669,2614.1,2612.5,3.0]
[1726962044715,3.82658,2613.3,2611.9,9.2048]
[1726962045005,0.382658,2613.2,2611.9,9.64894234]
[1726962045204,3.82674,2613.2,2612.0,0.44414234]
[1726962045508,10.0249,2614.0,2612.0,0.44414234]
[1726962045509,9.4749,2614.0,2612.0,7.38390368]
[1726962045672,9.4749,2614.0,2612.3,2.0]
[1726962045872,13.30046,2614.0,2612.4,0.98686903]
[1726962046074,3.82596,2613.8,2612.5,0.04573718]
[1726962046298,0.382596,2613.7,2612.5,0.04573718]
[1726962046495,13.30048,2614.0,2612.5,0.04573718]
[1726962046772,3.82688,2613.1,2612.5,0.04573718]
[1726962046996,3.82658,2613.3,2612.5,0.04573718]
[1726962047200,9.6333,2613.0,2611.9,9.2048]
[1726962047513,9.6333,2613.0,2612.0,0.05286182]
[1726962047680,0.96333,2612.9,2612.0,0.05286182]
[1726962048091,9.6333,2613.5,2612.0,0.05286182]
[1726962048484,3.82646,2613.4,2612.0,3.05286182]
[1726962048814,13.45959,2613.5,2612.0,3.0]
[1726962048976,3.82643,2613.4,2612.1,0.05269506]
[1726962049170,3.82703,2613.0,2612.1,0.05269506]
[1726962049412,3.82748,2612.7,2612.1,0.05269506]
[1726962049716,3.82731,2612.8,2611.4,9.0976]
[1726962050017,0.382703,2612.9,2611.5,0.31461964]
[1726962050018,4.209873,2612.9,2611.5,0.31461964]
[1726962050217,3.82733,2612.8,2611.5,0.31461964]
[1726962050373,0.382703,2612.9,2611.5,0.31461964]
[1726962050686,3.82676,2613.2,2611.6,0.93526903]
[1726962051080,3.82669,2613.3,2611.6,0.93526903]
[1726962051291,3.82673,2613.2,2611.6,0.93526903]
[1726962051501,3.82701,2613.0,2611.5,3.31461964]
[1726962051673,3.82701,2613.0,2611.5,3.74062923]
[1726962051869,0.382701,2612.9,2611.5,3.74062923]
[1726962052302,0.382701,2612.9,2611.5,4.28335592]
[1726962052612,3.82747,2612.7,2611.5,4.28335592]
[1726962052823,3.82689,2613.1,2611.5,4.28335592]
[1726962053112,9.1353,2613.3,2611.6,0.93607907]
[1726962053672,12.96191,2613.3,2611.6,0.93607907]
[1726962053871,1.296191,2613.2,2611.6,0.93607907]
[1726962054103,5.122941,2613.2,2611.6,0.93607907]
[1726962054298,3.82748,2612.7,2611.6,0.54272669]
[1726962054719,1.296191,2613.2,2611.7,0.0765706]
[1726962054887,1.296191,2613.2,2611.7,0.54272669]
[1726962055083,3.82705,2613.0,2611.5,3.31461964]
[1726962055328,1.4258071,2613.1,2611.5,3.31461964]
[1726962055531,1.4258071,2613.1,2611.6,0.54272669]
[1726962056191,3.82732,2612.8,2611.6,0.54272669]
[1726962056387,3.82732,2612.8,2611.5,3.70797202]
[1726962056589,0.382732,2612.7,2611.5,3.70797202]
[1726962056907,1.4258071,2613.1,2611.7,3.0]
[1726962057090,6.66,2613.6,2612.3,9.2048]
[1726962057281,6.66,2613.6,2612.4,3.54272669]
[1726962057497,6.66,2613.6,2612.4,3.0]
[1726962057696,3.82644,2613.4,2612.3,9.2048]
[1726962058007,6.66,2613.6,2612.4,3.0]
[1726962058214,7.326,2613.6,2612.4,4.00274574]
[1726962058546,6.66,2613.6,2612.5,2.0]
[1726962058702,6.7220669,2614.1,2613.1,2.0]
[1726962058901,6.7220669,2614.1,2613.4,2.0]
[1726962059116,6.7220669,2614.1,2613.5,37.56458507]
[1726962059338,6.7220669,2614.1,2613.6,33.785502]
[1726962059640,6.7220669,2614.1,2613.7,1.03107907]
[1726962059854,6.7220669,2614.1,2613.8,32.131291]
[1726962060138,6.7220669,2614.1,2613.9,3.329534]
[1726962060340,6.7220669,2614.1,2613.9,3.4060348]
[1726962060503,6.7220669,2614.1,2613.8,2.5448]
[1726962060504,6.7220669,2614.1,2614.0,53.5]
[1726962060698,6.7220669,2614.1,2613.8,7.98756502]
[1726962060699,7.39427359,2614.1,2613.8,2.5448]
[1726962060898,7.39427359,2614.1,2613.0,2.5472]
[1726962061297,11.21977359,2614.1,2613.0,2.5472]
[1726962061545,7.39427359,2614.1,2613.0,2.50262231]
[1726962062033,7.39427359,2614.1,2613.0,2.97888459]
[1726962062198,0.73942736,2614.0,2613.0,2.50262231]
[1726962062598,4.56497736,2614.0,2613.0,2.46469879]
[1726962062915,3.82605,2613.7,2611.8,2.0]
[1726962063115,3.82647,2613.4,2611.8,2.0]
[1726962063315,9.1353,2613.9,2611.9,0.49757133]
[1726962063641,3.82696,2613.1,2611.5,2.31461964]
[1726962063944,3.8272,2612.9,2611.5,0.31461964]
[1726962064249,9.1353,2613.0,2611.5,0.31461964]
[1726962064250,3.82787,2612.5,2611.5,0.31461964]
[1726962064536,3.82757,2612.7,2611.5,0.31461964]
[1726962064707,3.82718,2612.9,2611.4,0.07657706]
[1726962064901,1.296248,2612.8,2611.3,0.00080382]
[1726962065102,3.82764,2612.6,2611.3,0.00080382]
[1726962065318,3.82764,2612.6,2611.3,0.0773833]
[1726962065520,1.296248,2612.8,2611.4,2.4647]
[1726962066712,1.296248,2612.8,2611.5,0.0765657]
[1726962066916,1.296248,2612.8,2611.4,5.4647]
[1726962067319,1.296248,2612.8,2611.5,3.0]
[1726962067643,7.65416,2613.0,2611.4,2.4647]
[1726962067842,9.1844,2613.4,2611.4,2.4647]
[1726962068028,3.82719,2612.9,2611.4,2.4647]
[1726962068230,3.82704,2613.0,2611.4,2.4647]
[1726962068430,3.8274,2612.8,2611.4,2.4647]
[1726962068664,0.38274,2612.7,2611.4,2.4647]
[1726962068852,13.01059,2613.6,2611.6,5.4647]
[1726962069006,9.1844,2613.6,2611.8,2.0]
[1726962069212,9.1844,2613.6,2612.0,5.4647]
[1726962069512,9.1844,2613.6,2612.1,3.0]
[1726962069719,5.07774,2613.5,2612.0,2.4647]
[1726962069926,3.82671,2613.3,2612.0,2.4647]
[1726962070128,3.82671,2613.3,2611.6,2.77930759]
[1726962070129,7.1571,2613.0,2611.6,2.77930759]
[1726962070313,9.1844,2612.7,2611.6,2.77930759]
[1726962070509,13.01195,2612.7,2611.6,2.4647]
[1726962070856,1.301195,2612.6,2611.6,2.4647]
[1726962071332,5.128885,2612.6,2611.3,0.00080382]
[1726962071732,5.128805,2612.6,2611.3,0.00080382]
[1726962071926,1.301195,2612.6,2611.3,0.00080382]
[1726962072120,5.128825,2612.6,2611.3,0.00080382]
[1726962072352,9.1844,2612.7,2611.3,0.00080382]
[1726962072353,1.4313225,2612.5,2611.3,0.00080382]
[1726962072646,3.82805,2612.3,2611.3,0.00080382]
[1726962072854,3.8279,2612.4,2611.3,0.00080382]
[1726962073151,3.82804,2612.3,2611.3,0.00080382]
[1726962073351,1.4313225,2612.5,2611.3,0.07739257]
[1726962073648,1.4313225,2612.5,2611.3,0.00080382]
[1726962073847,5.2590725,2612.5,2611.3,0.00080382]
[1726962074048,0.52590725,2612.4,2611.3,0.00080382]
[1726962074216,3.8281,2612.3,2611.3,0.00080382]
[1726962075039,5.2591425,2612.5,2611.3,0.00080382]
[1726962075040,3.82849,2612.0,2611.3,0.00080382]
[1726962075210,3.82837,2612.1,2611.3,0.00080382]
[1726962075612,3.82849,2612.0,2611.3,0.00080382]
[1726962075928,3.82823,2612.2,2611.3,0.00080382]
[1726962076131,4.211163,2612.1,2611.3,0.00080382]
[1726962076350,0.382823,2612.1,2611.3,0.00080382]
[1726962077323,4.211193,2612.1,2611.3,0.00080382]
[1726962077576,0.382823,2612.1,2611.3,0.00080382]
[1726962077732,3.82848,2612.0,2611.3,0.00080382]
[1726962077932,0.4211303,2611.9,2611.3,0.00080382]
[1726962078365,4.211173,2612.1,2611.3,0.00080382]
[1726962078567,3.82852,2612.0,2611.3,0.00080382]
[1726962078755,0.382823,2612.1,2611.3,0.00080382]
[1726962079269,4.211233,2612.1,2611.3,0.00080382]
[1726962079475,3.82858,2612.0,2611.3,0.00080382]
[1726962079678,3.82882,2611.8,2611.3,0.00080382]
[1726962079973,3.82921,2611.5,2611.3,0.00080382]
[1726962080281,9.1206,2611.8,2611.3,0.00080382]
[1726962081946,0.4211403,2611.9,2611.3,2.46550382]
[1726962082169,9.1206,2612.3,2611.3,2.46550382]
[1726962082673,9.1206,2612.3,2611.4,0.06330769]
[1726962083232,9.1206,2612.3,2611.3,2.46550382]
[1726962083641,12.94873,2612.3,2611.3,2.46550382]
[1726962083858,1.294873,2612.2,2611.3,2.46550382]
[1726962084058,1.294873,2612.2,2611.3,0.00080382]
[1726962084263,3.82903,2611.7,2611.3,0.00080382]
[1726962084667,3.82902,2611.7,2611.3,0.00080382]
[1726962084874,3.82919,2611.6,2611.3,0.00080382]
[1726962085081,3.82936,2611.4,2611.3,0.00080382]
[1726962086389,3.82962,2611.3,2609.6,2.78383537]
[1726962086556,3.82961,2611.3,2609.6,2.78383537]
[1726962086732,3.8296,2611.3,2609.7,0.0590258]
[1726962086938,3.8296,2611.3,2609.7,3.0590258]
[1726962087140,0.38296,2611.2,2610.6,3.83041]
[1726962087489,0.38296,2611.2,2610.7,3.83029]
[1726962087694,0.38296,2611.2,2610.7,3.88769637]
[1726962087985,0.38296,2611.2,2610.7,0.05740637]
[1726962088186,3.82947,2611.4,2610.8,3.83021]
[1726962088552,3.82953,2611.3,2610.9,0.05708263]
[1726962088750,13.715701,2611.5,2610.9,0.05708263]
[1726962088990,3.82955,2611.3,2610.9,0.05708263]
[1726962089503,3.82939,2611.4,2610.8,3.83022]
[1726962089658,1.7545081,2611.3,2610.9,0.05763213]
[1726962089851,5.5840581,2611.3,2610.9,0.05763213]
[1726962090201,5.5840581,2611.3,2610.6,3.83042]
[1726962090370,5.5840581,2611.3,2611.0,0.05747028]
[1726962090696,5.5840581,2611.3,2610.6,3.83042]
[1726962090862,0.55840581,2611.2,2610.9,3.82995]
[1726962091063,1.7545081,2611.3,2611.0,0.05747028]
[1726962091064,5.5840181,2611.3,2611.0,0.05747028]
[1726962091294,1.7545081,2611.3,2611.0,3.82984]
[1726962091624,1.7545081,2611.3,2611.1,0.04777136]
[1726962091932,9.1206,2611.5,2611.1,0.04777136]
[1726962092087,9.1206,2611.5,2611.0,7.6597]
[1726962092426,3.82881,2611.8,2611.2,3.82956]
[1726962092609,3.82916,2611.6,2611.1,0.05254849]
[1726962092793,3.82916,2611.6,2611.3,0.05225722]
[1726962092999,0.382916,2611.5,2611.2,3.88205285]
[1726962093206,3.82892,2611.7,2611.4,0.0521116]
[1726962093385,3.82892,2611.7,2611.3,0.05225722]
[1726962093588,3.82883,2611.8,2611.5,0.05196599]
[1726962093924,3.82921,2611.5,2611.0,3.82986]
[1726962094126,3.82921,2611.5,2610.2,2.4647]
[1726962094284,0.382921,2611.4,2610.2,2.4647]
[1726962094622,4.212281,2611.4,2610.2,2.4647]
[1726962094830,3.82951,2611.3,2610.2,2.4647]
[1726962095072,9.8269,2611.3,2610.2,2.4647]
[1726962095323,9.8269,2611.3,2609.1,2.4647]
[1726962095324,3.83038,2610.8,2609.1,2.4647]
[1726962095522,3.83042,2610.7,2609.1,2.78383537]
[1726962096019,3.83042,2610.7,2609.1,2.4647]
[1726962096020,0.55,2610.6,2609.1,2.4647]
[1726962096227,4.90003833,2610.4,2609.1,2.4647]
[1726962096387,0.55,2610.2,2609.1,2.4647]
[1726962096585,0.90511,2610.6,2608.6,2.4647]
[1726962096586,4.90003833,2610.0,2608.6,2.4647]
[1726962096820,7.66382,2609.7,2609.1,3.83264]
[1726962097034,3.83187,2609.7,2609.1,3.83264]
[1726962097332,3.83112,2610.2,2609.1,3.83264]
[1726962097333,3.83124,2610.2,2609.4,3.83229]
[1726962097490,12.88215,2610.3,2609.8,3.83168]
[1726962097828,9.0511,2610.3,2609.4,3.83221]
[1726962097986,9.0511,2610.3,2609.2,3.83253]
[1726962097987,3.83171,2609.8,2609.2,3.8325]
[1726962098188,0.383171,2609.7,2609.2,3.8325]
[1726962098597,3.83174,2609.8,2609.3,3.83242]
[1726962098924,3.83175,2609.8,2609.2,3.8325]
[1726962099221,3.83175,2609.8,2609.3,0.04213617]
[1726962099626,3.83175,2609.8,2609.2,7.66501]
[1726962099829,3.83175,2609.8,2609.4,0.04202398]
[1726962100132,0.383175,2609.7,2609.5,0.0419118]
[1726962100491,3.83116,2610.2,2609.5,0.0419118]
[1726962100728,3.83137,2610.1,2609.5,0.0419118]
[1726962101026,3.83137,2610.1,2609.5,3.8740018]
[1726962101225,3.83143,2610.0,2609.5,0.0515029]
[1726962101732,9.0511,2610.3,2609.7,3.83174]
[1726962101916,0.90511,2610.6,2609.7,2.4647]
[1726962102115,9.0511,2610.7,2610.2,3.83112]
[1726962102116,0.995621,2610.5,2610.2,3.83112]
[1726962102320,0.995621,2610.5,2610.3,0.04443257]
[1726962102516,0.995621,2610.5,2610.0,3.83133]
[1726962102828,4.826391,2610.5,2610.1,0.04463133]
[1726962103188,0.995621,2610.5,2610.1,0.0095911]
[1726962103384,0.995621,2610.5,2610.2,0.04440686]
[1726962103889,0.4826191,2610.4,2610.2,0.04440686]
[1726962104587,12.88155,2610.7,2610.2,0.04440686]
[1726962104588,3.83016,2610.9,2610.3,3.83096]
[1726962104786,9.0511,2611.0,2610.4,3.8308]
[1726962105004,3.8301,2610.9,2610.2,3.831]
[1726962105530,3.8301,2610.9,2610.3,0.04425304]
[1726962105710,1.28812,2610.8,2610.3,3.87522304]
[1726962105918,1.28812,2610.8,2610.3,0.04425304]
[1726962106117,1.28812,2610.8,2610.2,3.83102]
[1726962106372,1.28812,2610.8,2610.3,0.0442501]
[1726962106497,1.28812,2610.8,2610.3,3.8752001]
[1726962106813,1.28812,2610.8,2610.3,0.0442501]
[1726962107224,1.0209821,2611.2,2610.6,3.83043]
[1726962107432,1.0209821,2611.2,2610.4,0.04412866]
[1726962107647,3.83018,2610.9,2610.7,0.04774296]
[1726962107811,3.83007,2611.0,2610.4,3.83079]
[1726962108018,3.83007,2611.0,2610.8,0.04364298]
[1726962108235,0.383007,2610.9,2610.4,3.83073]
[1726962108446,0.383007,2610.9,2610.4,7.66147]
[1726962108606,0.383007,2610.9,2610.4,7.66143]
[1726962109028,0.383007,2610.9,2610.4,3.8307]
[1726962110038,3.33,2610.9,2610.4,7.66144]
[1726962110244,3.33,2610.9,2610.7,3.83029]
[1726962110822,3.33,2610.9,2610.1,0.0095911]
[1726962111145,3.33,2610.9,2610.6,3.83045]
[1726962111516,3.33,2610.9,2610.8,3.83024]
[1726962111935,3.33,2610.9,2610.7,3.83039]
[1726962112128,3.33,2610.9,2610.7,7.66069]
[1726962112335,3.33,2610.9,2610.7,3.8303]
[1726962112510,6.66,2610.9,2610.7,3.8303]
[1726962112860,6.66,2610.9,2610.1,0.0095911]
[1726962113154,7.708984,2610.9,2610.1,0.0095911]
[1726962113815,6.66,2610.9,2610.4,2.4647]
[1726962114010,6.66,2610.9,2610.5,3.39855204]
[1726962114311,5.66,2610.9,2610.7,5.4647]
[1726962114507,5.66,2610.9,2610.8,18.16825643]
[1726962115047,4.66,2610.9,2610.8,18.16825643]
[1726962115541,7.99,2610.9,2610.8,18.16825643]
[1726962116248,7.99,2610.9,2610.8,16.21294443]
[1726962117139,7.99,2610.9,2610.8,6.08974643]
[1726962118053,11.32,2610.9,2610.8,0.05743743]
[1726962118423,11.32,2610.9,2610.7,2.4647]
[1726962118608,11.32,2610.9,2610.8,0.05743743]
[1726962118925,11.32,2610.9,2610.7,2.4647]
[1726962119120,11.32,2610.9,2610.8,0.05743743]
[1726962119324,11.32,2610.9,2610.7,2.4647]
[1726962119632,11.32,2610.9,2610.8,0.05743743]
[1726962120013,11.32,2610.9,2610.8,2.621083]
[1726962120366,14.65,2610.9,2610.8,8.57427247]
[1726962120511,12.1853,2610.9,2610.8,64.21044189]
[1726962120959,12.1853,2610.9,2610.8,64.03134189]
[1726962121110,12.1853,2610.9,2610.8,62.03134189]
[1726962121459,12.1853,2610.9,2610.8,64.03134189]
[1726962121609,12.1853,2610.9,2610.8,57.14054573]
[1726962121925,12.1853,2610.9,2610.8,29.21891243]
[1726962122115,12.1853,2610.9,2610.8,9.22827543]
[1726962122314,12.1853,2610.9,2610.8,7.951939]
[1726962122761,15.5153,2610.9,2610.8,7.951939]
[1726962123351,17.06683,2610.9,2610.1,0.40607838]
[1726962123661,17.06683,2610.9,2610.1,0.0095911]
[1726962125657,20.39683,2610.9,2610.1,0.0095911]
[1726962127537,18.8453,2610.9,2610.1,0.0095911]
[1726962128754,22.1753,2610.9,2610.1,0.0095911]
[1726962128919,22.1753,2610.9,2610.1,3.0095911]
[1726962129120,22.1753,2610.9,2610.1,0.0095911]
[1726962130254,22.1753,2610.9,2610.1,3.0095911]
[1726962130413,22.1753,2610.9,2610.3,3.0]
[1726962130621,22.1753,2610.9,2610.5,3.0]
[1726962130814,22.1753,2610.9,2610.7,3.0]
[1726962131027,22.1753,2610.9,2610.8,20.126239]
[1726962131232,25.5053,2610.9,2610.8,18.67755]
[1726962131664,25.5053,2610.9,2610.8,8.166769]
[1726962131834,25.5053,2610.9,2610.8,7.639614]
[1726962132166,25.5053,2610.9,2610.8,7.251398]
[1726962132866,25.5053,2610.9,2610.8,6.01715]
[1726962133038,25.5053,2610.9,2610.1,0.0095911]
[1726962133876,28.8353,2610.9,2610.1,0.0095911]
[1726962134088,31.71883,2610.9,2610.1,0.0095911]
[1726962136868,28.8353,2610.9,2610.1,0.0095911]
[1726962137067,32.1653,2610.9,2610.1,0.0095911]
[1726962139576,35.4953,2610.9,2610.1,0.0095911]
[1726962140090,35.4953,2610.9,2610.2,36.859502]
[1726962140294,35.4953,2610.9,2610.3,3.07660093]
[1726962140508,35.4953,2610.9,2610.5,3.0]
[1726962140711,35.4953,2610.9,2610.7,3.0]
[1726962140987,35.4953,2610.9,2610.8,14.436588]
[1726962141193,35.4953,2610.9,2610.4,3.0]
[1726962141671,35.4953,2610.9,2610.6,3.0]
[1726962141870,35.4953,2610.9,2610.8,3.0]
[1726962142080,38.8253,2610.9,2610.7,3.0]
[1726962142255,38.8253,2610.9,2610.1,2.0095911]
[1726962142256,42.6635559,2610.9,2610.1,0.0095911]
[1726962142456,9.1317,2610.8,2610.1,0.0095911]
[1726962147677,42.1553,2610.9,2610.1,0.0095911]
[1726962148294,45.4853,2610.9,2610.1,0.0095911]
[1726962150006,9.2457,2610.8,2610.1,0.0095911]
[1726962150309,0.48151286,2610.7,2610.1,0.0095911]
[1726962150833,9.5254,2610.6,2610.1,0.0095911]
[1726962152114,9.5254,2610.6,2610.3,3.83089]
[1726962152875,9.5254,2610.6,2610.3,3.83088]
[1726962153078,3.83127,2610.2,2609.6,3.83191]
[1726962153390,9.5254,2609.7,2609.0,3.83276]
[1726962153592,9.5254,2609.5,2608.7,3.83324]
[1726962153905,3.83232,2609.4,2609.1,0.05096661]
[1726962154092,9.5254,2609.4,2609.0,0.05111249]
[1726962154290,9.5254,2609.4,2609.3,3.83244]
[1726962154683,9.5254,2609.4,2609.3,3.89587184]
[1726962158330,9.5254,2610.0,2609.8,3.83165]
[1726962158484,0.86106457,2609.9,2609.4,3.83227]
[1726962158682,0.86106457,2609.9,2609.0,6.83284]
[1726962158683,9.5254,2610.0,2609.9,3.83156]
[1726962159626,9.5254,2610.0,2609.8,3.8317]
[1726962159919,9.5254,2610.0,2609.8,7.66331]
[1726962160220,9.5254,2610.0,2609.9,3.83156]
[1726962160418,10.47794,2610.0,2609.8,3.83161]
[1726962160883,10.47794,2610.0,2609.8,7.66323]
[1726962161282,10.47794,2610.0,2609.9,0.05651775]
[1726962161884,10.47794,2610.0,2609.7,0.0299884]
[1726962163325,9.5254,2609.8,2609.7,0.0299884]
[1726962163524,10.956352,2609.8,2609.7,0.0299884]
[1726962165222,14.788062,2609.8,2609.7,0.0299884]
[1726962165531,10.956352,2609.8,2609.7,0.0299884]
[1726962165848,9.6161,2609.6,2609.2,3.8325]
[1726962165986,1.344795,2609.5,2609.2,3.8325]
[1726962166625,9.6161,2609.6,2609.4,3.83229]
[1726962167243,9.6161,2609.6,2609.5,3.83215]
[1726962168286,9.6161,2609.6,2609.4,3.83229]
[1726962168721,9.6161,2609.6,2609.3,3.83242]
[1726962169032,9.6161,2609.6,2609.2,3.83253]
[1726962169200,0.96161,2609.5,2609.4,3.83228]
[1726962170525,9.6161,2609.6,2609.5,3.83215]
[1726962173415,9.6161,2609.6,2609.4,7.6645]
[1726962173619,9.6161,2609.6,2609.5,3.83215]
[1726962173984,1.430952,2609.8,2609.5,3.83215]
[1726962174126,9.28,2609.9,2609.8,3.83171]
[1726962174458,9.28,2610.6,2610.1,3.83119]
[1726962174675,9.28,2610.6,2610.5,3.83068]
[1726962175362,9.28,2610.6,2610.4,3.83082]
[1726962175920,9.28,2610.6,2610.4,3.83075]
[1726962176116,0.97615129,2610.5,2610.4,3.83075]
[1726962177967,9.28,2610.6,2610.5,3.83068]
[1726962178273,0.48151286,2610.7,2610.5,3.83068]
[1726962178274,0.48151286,2610.7,2610.5,3.83065]
[1726962178431,0.48151286,2610.7,2610.4,3.83081]
[1726962178769,13.11062,2610.6,2610.1,3.83118]
[1726962178930,3.83087,2610.4,2609.9,3.83156]
[1726962179130,1.74225329,2610.5,2609.7,3.83178]
[1726962179131,5.57301329,2610.5,2609.7,3.83174]
[1726962179331,3.83098,2610.3,2609.8,3.83163]
[1726962179726,5.57301329,2610.5,2609.9,3.83151]
[1726962179929,5.57301329,2610.5,2609.9,3.83147]
[1726962180240,5.57301329,2610.5,2609.4,4.42893]
[1726962180241,1.48530133,2610.4,2609.4,4.42893]
[1726962180440,1.48530133,2610.4,2609.9,3.83153]
[1726962180644,9.28,2610.3,2609.5,3.83206]
[1726962180846,1.48530133,2610.4,2609.4,0.5]
[1726962180847,0.55,2610.0,2609.4,0.5]
[1726962181030,4.38151,2610.0,2609.4,4.33221]
[1726962181232,9.28,2609.7,2609.4,0.5]
[1726962181442,4.38201,2609.6,2609.4,0.1875]
[1726962181642,13.66215,2609.5,2609.4,0.1875]
[1726962183876,13.66215,2609.5,2608.9,0.0379347]
[1726962183877,7.66504,2609.3,2608.9,0.0379347]
[1726962184033,1.694504,2609.2,2608.9,0.0379347]
[1726962185335,1.694504,2609.2,2608.9,3.8708447]
[1726962185646,1.694504,2609.2,2608.9,3.8709347]
[1726962186376,1.694504,2609.2,2608.9,0.0379347]
[1726962186873,1.694504,2609.2,2609.1,3.83273]
[1726962187030,9.28,2609.4,2609.0,3.83279]
[1726962187235,9.28,2609.4,2609.3,3.83244]
[1726962187436,9.1139,2609.8,2609.4,3.83219]
[1726962187672,9.1139,2609.8,2609.4,7.6644]
[1726962187873,9.1139,2609.8,2609.4,3.83219]
[1726962188074,1.09196599,2609.7,2609.4,3.83219]
[1726962188776,1.09196599,2609.7,2609.6,3.832]
[1726962189092,9.1139,2610.1,2609.7,3.83176]
[1726962190653,9.1139,2610.1,2609.8,3.83169]
[1726962191066,9.1139,2610.1,2610.0,3.83141]